fUSD/lending_fUSD_20240301
["ID","MTS","AMOUNT","RATE_DAILY","PERIOD"]
[315948697,1709298942198,286.04421351,0.00016438,2]
[315948698,1709298947586,157.70427687,0.00016437,2]
[315948700,1709298955641,1126.14279123,0.00016438,2]
[315948702,1709298961438,1741.83728421,0.00016438,2]
[315948703,1709298962870,459.6462769,0.00016438,2]
[315948704,1709298964217,193.27645268,0.00016438,2]
[315948706,1709298977674,1126.14279123,0.00016438,2]
[315948707,1709298995655,851.07185473,0.00016438,2]
[315948710,1709299283985,173.41048195,0.00016438,2]
[315948711,1709299286005,176.8679273,0.00016438,2]
[315948759,1709299831780,-230.84148984,0.0001703,2]
[315948760,1709299831790,-87.51851036,0.0001703,2]
[315948784,1709299832030,-75.81503532,0.0001703,2]
[315948786,1709299832040,-483.66705448,0.0001703,2]
[315948788,1709299832049,-157.70427687,0.0001703,2]
[315948790,1709299832058,-691.73065299,0.00017031,2]
[315948791,1709299832068,-1578.04498033,0.00017032,2]
[315948794,1709299832079,-16.8728731,0.00017032,2]
[315948796,1709299832088,-155.0,0.00017032,2]
[315948798,1709299832098,-1057.72421204,0.00017033,2]
[315948799,1709299832107,-339.87480405,0.00017033,2]
[315948801,1709299832118,-155.0,0.00017034,2]
[315948803,1709299832128,-546.60403373,0.00017034,2]
[315948805,1709299832140,-5337.57667588,0.00017034,2]
[315948807,1709299832150,-540.90460322,0.00017035,2]
[315948809,1709299832160,-234.84782212,0.00017035,2]
[315948811,1709299832170,-155.0,0.00017035,2]
[315948814,1709299832180,-692.90731309,0.00017035,2]
[315948816,1709299832189,-155.0,0.00017036,2]
[315948818,1709299832200,-165.70840078,0.00017036,2]
[315948820,1709299832210,-160.64158343,0.00017037,2]
[315948821,1709299832220,-2138.99822812,0.00017131,2]
[315948823,1709299832230,-300.0,0.00017159,2]
[315948826,1709299832240,-573.55487184,0.00017436,2]
[315948828,1709299832249,-8707.2,0.00017436,2]
[315948830,1709299832259,-692.73,0.00017436,2]
[315948832,1709299832269,-160.64158342,0.00017737,2]
[315948833,1709299832278,-657.21,0.00018062,2]
[315948836,1709299832287,-160.64158342,0.00018438,2]
[315948838,1709299832297,-250.0,0.00018756,2]
[315948840,1709299832307,-176.28,0.00018896,2]
[315948842,1709299832316,-160.64158342,0.00019138,2]
[315948844,1709299832325,-250.0,0.00019178,2]
[315948846,1709299832334,-774.06,0.00019254,2]
[315948848,1709299832343,-2896.34,0.00019581,2]
[315948850,1709299832353,-175.89,0.00019683,2]
[315948852,1709299832362,-500.0,0.00019781,2]
[315948854,1709299832371,-658.07,0.00019828,2]
[315948856,1709299832382,-23890.0,0.00019837,2]
[315948858,1709299832391,-160.64158342,0.00019838,2]
[315948860,1709299832400,-341.93,0.00019899,2]
[315948862,1709299832409,-1016.15943733,0.0002,10]
[315948864,1709299832419,-200.0,0.00020012,2]
[315948866,1709299832428,-657.21,0.00020326,2]
[315948868,1709299832437,-160.64158342,0.00020538,2]
[315948870,1709299832446,-310.0,0.00020551,2]
[315948872,1709299832456,-171.0,0.00020551,2]
[315948874,1709299832466,-999.0,0.00020551,2]
[315948876,1709299832476,-207.0,0.00020698,2]
[315948878,1709299832486,-301.53182771,0.00020865,2]
[315948880,1709299832495,-171.04,0.00020869,2]
[315948882,1709299832505,-4970.61951882,0.00020951,2]
[315948884,1709299832518,-5752.82048118,0.00020951,2]
[315948886,1709299832528,-836.76,0.00021096,2]
[315948888,1709299832538,-766.44,0.00021096,2]
[315948890,1709299832548,-160.64158342,0.00021239,2]
[315948892,1709299832558,-31412.04392088,0.000213,2]
[315948894,1709299832573,-12696.03160948,0.000213,2]
[315948897,1709299832585,-2085.83580355,0.000213,2]
[315948900,1709299832603,-834.26875927,0.000213,2]
[315948903,1709299832626,-588.41094808,0.000213,2]
[315948905,1709299832639,-3959.99174973,0.000213,2]
[315948912,1709299832702,-856.10076036,0.000213,2]
[315948915,1709299832715,-431.18512968,0.000213,2]
[315948917,1709299832727,-59283.00000001,0.000213,2]
[315948919,1709299832740,-24034.27487396,0.000213,2]
[315948921,1709299832752,-7261.99012604,0.000213,2]
[315948924,1709299832764,-51128.83363975,0.000213,2]
[315948926,1709299832776,-1838.28885621,0.000213,2]
[315948929,1709299832789,-1400.0,0.000213,2]
[315948931,1709299832801,-493.64174045,0.000213,2]
[315948933,1709299832813,-658.40712581,0.000213,2]
[315949636,1709299839748,-304.16524386,0.000213,2]
[315949638,1709299839760,-17987.28872206,0.000213,2]
[315949641,1709299839776,-443.83778674,0.000213,2]
[315949643,1709299839788,-2049.75,0.000213,2]
[315949648,1709299839824,-592.42669982,0.000213,2]
[315949652,1709299839836,-8190.19486911,0.000213,2]
[315949655,1709299839848,-23503.82156434,0.000213,2]
[315949658,1709299839859,-11969.29466775,0.000213,2]
[315949660,1709299839868,-2053.19,0.0002137,2]
[315949662,1709299839878,-4880.02985687,0.00021437,6]
[315949664,1709299839888,-317.61830389,0.00021438,6]
[315949666,1709299839899,-5599.38167149,0.00021439,6]
[315949669,1709299839915,-1048.69296455,0.00021439,6]
[315949671,1709299839924,-1623.26251316,0.00021448,6]
[315949673,1709299839934,-10660.94108134,0.0002145,6]
[315949675,1709299839944,-317.61830389,0.00021451,6]
[315949677,1709299839954,-10660.94108134,0.00021452,6]
[315949679,1709299839964,-10461.5956242,0.00021453,6]
[315949681,1709299839974,-6648.07463604,0.00021453,6]
[315949683,1709299839984,-1623.26251316,0.00021454,6]
[315949685,1709299839995,-6648.07463604,0.00021455,6]
[315949687,1709299840004,-1623.26251316,0.00021455,6]
[315949689,1709299840014,-1623.26251316,0.00021461,6]
[315949691,1709299840024,-10461.5956242,0.00021461,6]
[315949693,1709299840034,-10461.5956242,0.00021466,6]
[315949695,1709299840044,-4135.53447292,0.00021469,6]
[315949699,1709299840072,-505.7999905,0.00021469,6]
[315949702,1709299840094,-2006.74017262,0.00021469,6]
[315949704,1709299840104,-402.29520535,0.00021471,6]
[315949706,1709299840114,-1220.76330201,0.00021472,6]
[315949708,1709299840126,-3659.26655486,0.00021472,6]
[315949710,1709299840135,-4880.02985687,0.00021481,6]
[315949713,1709299840146,-10660.94108134,0.00021481,6]
[315949714,1709299840156,-317.61830389,0.00021487,6]
[315949717,1709299840165,-317.61830389,0.00021488,6]
[315949719,1709299840175,-10660.94108134,0.00021488,6]
[315949721,1709299840184,-10461.5956242,0.00021491,6]
[315949723,1709299840195,-402.29520535,0.00021497,6]
[315949725,1709299840204,-402.29520535,0.00021497,6]
[315949727,1709299840214,-402.29520535,0.00021498,6]
[315949729,1709299840224,-4880.02985687,0.000215,6]
[315949731,1709299840234,-166.0,0.00021525,2]
[315949733,1709299840243,-258.43703722,0.00021745,2]
[315949735,1709299840252,-178.0,0.000218,2]
[315949737,1709299840262,-2400.9565,0.00021817,2]
[315949739,1709299840271,-2194.7122,0.00021817,2]
[315949741,1709299840281,-1224.33293172,0.00021817,2]
[315949743,1709299840290,-407.17041216,0.00021817,2]
[315949745,1709299840299,-257.53,0.00021827,2]
[315949747,1709299840308,-946.47381297,0.00021848,2]
[315949749,1709299840318,-750.0,0.000219,2]
[315949751,1709299840327,-1504.0,0.000219,2]
[315949753,1709299840337,-422.90150949,0.00021904,2]
[315949755,1709299840348,-286.0,0.00021907,3]
[315949757,1709299840357,-155.05367639,0.00021915,2]
[315949759,1709299840367,-155.08303605,0.00021915,2]
[315949761,1709299840376,-296.87733629,0.00021915,2]
[315949763,1709299840386,-155.0,0.00021915,2]
[315949765,1709299840397,-155.0,0.00021915,2]
[315949767,1709299840407,-231.70433092,0.00021915,2]
[315949769,1709299840416,-187.35485517,0.00021915,2]
[315949771,1709299840425,-181.95577315,0.00021915,2]
[315949773,1709299840435,-155.09654629,0.00021915,2]
[315949775,1709299840444,-155.0,0.00021915,2]
[315949777,1709299840454,-155.07300655,0.00021915,2]
[315949779,1709299840464,-182.72228946,0.00021915,2]
[315949781,1709299840474,-404.85391741,0.00021915,2]
[315949783,1709299840485,-184.580311,0.00021915,2]
[315949785,1709299840497,-155.0,0.00021915,2]
[315949787,1709299840508,-155.09593089,0.00021916,2]
[315949788,1709299840519,-628.47886136,0.00021916,2]
[315949789,1709299840530,-500.0,0.00021917,2]
[315949790,1709299840540,-500.0,0.00021917,2]
[315949791,1709299840553,-500.0,0.00021917,2]
[315949792,1709299840564,-493.42573884,0.00021917,2]
[315949793,1709299840574,-500.0,0.00021917,2]
[315949794,1709299840584,-500.0,0.00021917,2]
[315949795,1709299840594,-500.0,0.00021917,2]
[315949796,1709299840606,-500.0,0.00021917,2]
[315949797,1709299840616,-588.32952351,0.00021917,2]
[315949798,1709299840626,-500.0,0.00021917,2]
[315949799,1709299840637,-500.0,0.00021917,2]
[315949800,1709299840651,-500.0,0.00021917,2]
[315949801,1709299840661,-765.48,0.00021917,2]
[315949802,1709299840673,-500.0,0.00021917,2]
[315949803,1709299840683,-500.0,0.00021917,2]
[315949805,1709299840694,-381.43,0.00021917,2]
[315949807,1709299840705,-500.0,0.00021917,2]
[315949809,1709299840715,-500.0,0.00021917,2]
[315949811,1709299840725,-500.0,0.00021917,2]
[315949813,1709299840735,-500.0,0.00021917,2]
[315949815,1709299840745,-500.0,0.00021917,2]
[315949817,1709299840754,-500.0,0.00021917,2]
[315949818,1709299840764,-500.0,0.00021917,2]
[315949819,1709299840777,-545.31,0.00021917,2]
[315949820,1709299840787,-559.51,0.00021917,2]
[315949821,1709299840797,-500.0,0.00021917,2]
[315949822,1709299840809,-500.0,0.00021917,2]
[315949823,1709299840820,-500.0,0.00021917,2]
[315949824,1709299840830,-500.0,0.00021917,2]
[315949825,1709299840840,-644.03,0.00021917,2]
[315949826,1709299840850,-500.0,0.00021917,2]
[315949827,1709299840859,-500.0,0.00021917,2]
[315949828,1709299840869,-500.0,0.00021917,2]
[315949829,1709299840879,-500.0,0.00021917,2]
[315949830,1709299840889,-500.0,0.00021917,2]
[315949831,1709299840900,-557.41,0.00021917,2]
[315949832,1709299840910,-500.0,0.00021917,2]
[315949833,1709299840920,-500.0,0.00021917,2]
[315949834,1709299840929,-500.0,0.00021917,2]
[315949835,1709299840939,-565.13,0.00021917,2]
[315949836,1709299840949,-500.0,0.00021917,2]
[315949837,1709299840959,-787.78,0.00021917,2]
[315949838,1709299840969,-500.0,0.00021917,2]
[315949839,1709299840979,-500.0,0.00021917,2]
[315949840,1709299840989,-500.0,0.00021917,2]
[315949841,1709299840998,-500.0,0.00021917,2]
[315949842,1709299841008,-500.0,0.00021917,2]
[315949843,1709299841018,-500.0,0.00021917,2]
[315949844,1709299841028,-500.0,0.00021917,2]
[315949845,1709299841039,-548.88,0.00021917,2]
[315949846,1709299841048,-500.0,0.00021917,2]
[315949847,1709299841058,-500.0,0.00021917,2]
[315949849,1709299841068,-573.94,0.00021917,2]
[315949851,1709299841078,-500.0,0.00021917,2]
[315949853,1709299841089,-500.0,0.00021917,2]
[315949855,1709299841098,-500.0,0.00021917,2]
[315949857,1709299841108,-500.0,0.00021917,2]
[315949859,1709299841118,-584.87,0.00021917,2]
[315949861,1709299841127,-500.0,0.00021917,2]
[315949863,1709299841137,-500.0,0.00021917,2]
[315949865,1709299841148,-500.0,0.00021917,2]
[315949867,1709299841158,-500.0,0.00021917,2]
[315949869,1709299841168,-500.0,0.00021917,2]
[315949871,1709299841178,-500.0,0.00021917,2]
[315949873,1709299841188,-500.0,0.00021917,2]
[315949875,1709299841197,-500.0,0.00021917,2]
[315949877,1709299841207,-500.0,0.00021917,2]
[315949879,1709299841216,-527.95,0.00021917,2]
[315949881,1709299841226,-500.0,0.00021917,2]
[315949883,1709299841235,-500.0,0.00021917,2]
[315949885,1709299841245,-500.0,0.00021917,2]
[315949887,1709299841254,-500.0,0.00021917,2]
[315949889,1709299841263,-500.0,0.00021917,2]
[315949891,1709299841273,-500.0,0.00021917,2]
[315949893,1709299841283,-500.0,0.00021917,2]
[315949895,1709299841292,-500.0,0.00021917,2]
[315949897,1709299841302,-500.35,0.00021917,2]
[315949899,1709299841312,-500.0,0.00021917,2]
[315949901,1709299841322,-500.0,0.00021917,2]
[315949903,1709299841331,-206.34,0.00021917,2]
[315949905,1709299841340,-500.0,0.00021917,2]
[315949907,1709299841350,-500.0,0.00021917,2]
[315949909,1709299841359,-500.0,0.00021917,2]
[315949911,1709299841369,-500.0,0.00021917,2]
[315949913,1709299841379,-500.0,0.00021917,2]
[315949915,1709299841389,-500.0,0.00021917,2]
[315949917,1709299841399,-500.0,0.00021917,2]
[315949925,1709299841460,-500.0,0.00021917,2]
[315949927,1709299841470,-554.15,0.00021917,2]
[315949929,1709299841479,-150.0,0.00021917,2]
[315949931,1709299841488,-500.0,0.00021917,2]
[315949933,1709299841498,-500.0,0.00021917,2]
[315949935,1709299841507,-617.19,0.00021917,2]
[315949937,1709299841516,-500.0,0.00021917,2]
[315949939,1709299841525,-500.0,0.00021917,2]
[315949941,1709299841535,-500.0,0.00021917,2]
[315949943,1709299841544,-500.0,0.00021917,2]
[315949944,1709299841555,-500.0,0.00021917,2]
[315949947,1709299841564,-500.0,0.00021917,2]
[315949949,1709299841578,-500.0,0.00021917,2]
[315949951,1709299841587,-500.0,0.00021917,2]
[315949953,1709299841598,-657.9,0.00021917,2]
[315949955,1709299841607,-500.0,0.00021917,2]
[315949957,1709299841617,-500.0,0.00021917,2]
[315949959,1709299841627,-1132.65,0.00021917,2]
[315949961,1709299841638,-500.0,0.00021917,2]
[315949963,1709299841649,-500.0,0.00021917,2]
[315949965,1709299841659,-637.98,0.00021917,2]
[315949967,1709299841668,-500.0,0.00021917,2]
[315949969,1709299841678,-1551.68,0.00021917,2]
[315949971,1709299841688,-231.18,0.00021917,2]
[315949973,1709299841697,-581.35,0.00021917,2]
[315949975,1709299841707,-529.34,0.00021917,2]
[315949977,1709299841717,-500.0,0.00021917,2]
[315949979,1709299841726,-1080.97,0.00021917,2]
[315949981,1709299841735,-500.0,0.00021917,2]
[315949983,1709299841745,-526.33,0.00021917,2]
[315949985,1709299841754,-548.11,0.00021917,2]
[315949987,1709299841763,-685.54,0.00021917,2]
[315949989,1709299841773,-524.45376131,0.00021917,2]
[315949990,1709299841782,-500.0,0.00021917,2]
[315949992,1709299841791,-500.0,0.00021917,2]
[315949993,1709299841801,-500.16,0.00021917,2]
[315949994,1709299841810,-500.0,0.00021917,2]
[315949995,1709299841821,-500.0,0.00021917,2]
[315949996,1709299841830,-1100.16,0.00021917,2]
[315949997,1709299841840,-500.0,0.00021917,2]
[315949998,1709299841849,-500.0,0.00021917,2]
[315949999,1709299841859,-500.0,0.00021917,2]
[315950000,1709299841869,-500.0,0.00021917,2]
[315950001,1709299841878,-718.04,0.00021917,2]
[315950002,1709299841888,-500.0,0.00021917,2]
[315950003,1709299841898,-500.0,0.00021917,2]
[315950004,1709299841908,-500.0,0.00021917,2]
[315950005,1709299841918,-236.36,0.00021917,2]
[315950006,1709299841927,-500.0,0.00021917,2]
[315950007,1709299841936,-500.0,0.00021917,2]
[315950008,1709299841946,-500.0,0.00021917,2]
[315950009,1709299841955,-553.49,0.00021917,2]
[315950010,1709299841965,-500.0,0.00021917,2]
[315950011,1709299841974,-500.0,0.00021917,2]
[315950012,1709299841984,-500.0,0.00021917,2]
[315950013,1709299841993,-31.73980247,0.00021917,2]
[315950019,1709299842366,-468.26019753,0.00021917,2]
[315950020,1709299842376,-500.0,0.00021917,2]
[315950023,1709299842385,-686.71,0.00021917,2]
[315950025,1709299842396,-500.0,0.00021917,2]
[315950028,1709299842406,-500.0,0.00021917,2]
[315950030,1709299842415,-500.0,0.00021917,2]
[315950032,1709299842424,-1344.42,0.00021917,2]
[315950033,1709299842434,-500.0,0.00021917,2]
[315950035,1709299842444,-500.0,0.00021917,2]
[315950036,1709299842453,-589.26,0.00021917,2]
[315950037,1709299842464,-5969.63,0.00021917,2]
[315950038,1709299842473,-500.0,0.00021917,2]
[315950039,1709299842482,-500.0,0.00021917,2]
[315950040,1709299842492,-1923.21,0.00021917,2]
[315950041,1709299842502,-665.76,0.00021917,2]
[315950042,1709299842511,-500.0,0.00021917,2]
[315950043,1709299842521,-500.0,0.00021917,2]
[315950044,1709299842531,-844.68,0.00021917,2]
[315950045,1709299842540,-4595.29,0.00021917,2]
[315950046,1709299842553,-500.0,0.00021917,2]
[315950047,1709299842562,-885.38,0.00021917,2]
[315950049,1709299842571,-500.0,0.00021917,2]
[315950051,1709299842582,-277.45889528,0.00021917,2]
[315950053,1709299842592,-629.26,0.00021917,2]
[315950055,1709299842600,-644.39,0.00021917,2]
[315950057,1709299842610,-612.73,0.00021917,2]
[315950059,1709299842619,-506.25,0.00021917,2]
[315950061,1709299842630,-500.0,0.00021917,2]
[315950063,1709299842640,-2239.8,0.00021917,2]
[315950065,1709299842651,-500.0,0.00021917,2]
[315950067,1709299842660,-500.0,0.00021917,2]
[315950068,1709299842670,-500.0,0.00021917,2]
[315950069,1709299842679,-1641.68,0.00021917,2]
[315950070,1709299842689,-1520.47,0.00021917,2]
[315950071,1709299842698,-500.0,0.00021917,2]
[315950072,1709299842708,-500.0,0.00021917,2]
[315950073,1709299842717,-500.0,0.00021917,2]
[315950074,1709299842727,-500.0,0.00021917,2]
[315950075,1709299842736,-905.28,0.00021917,2]
[315950076,1709299842745,-500.0,0.00021917,2]
[315950077,1709299842755,-500.0,0.00021917,2]
[315950078,1709299842764,-500.0,0.00021917,2]
[315950080,1709299842774,-500.0,0.00021917,2]
[315950082,1709299842783,-928.71,0.00021917,2]
[315950084,1709299842792,-612.06,0.00021917,2]
[315950086,1709299842800,-500.0,0.00021917,2]
[315950088,1709299842810,-500.0,0.00021917,2]
[315950090,1709299842818,-538.91,0.00021917,2]
[315950092,1709299842828,-659.71,0.00021917,2]
[315950094,1709299842838,-500.0,0.00021917,2]
[315950095,1709299842847,-639.93,0.00021917,2]
[315950096,1709299842856,-515.23,0.00021917,2]
[315950097,1709299842866,-500.0,0.00021917,2]
[315950098,1709299842876,-500.0,0.00021917,2]
[315950099,1709299842885,-570.89,0.00021917,2]
[315950100,1709299842895,-1537.59,0.00021917,2]
[315950101,1709299842905,-500.0,0.00021917,2]
[315950102,1709299842914,-500.0,0.00021917,2]
[315950103,1709299842924,-1506.72,0.00021917,2]
[315950104,1709299842933,-500.0,0.00021917,2]
[315950105,1709299842942,-1614.43,0.00021917,2]
[315950106,1709299842952,-500.0,0.00021917,2]
[315950107,1709299842961,-994.38,0.00021917,2]
[315950108,1709299842971,-1049.11,0.00021917,2]
[315950109,1709299842980,-1958.26812723,0.00021917,2]
[315950110,1709299842994,-637.12548968,0.00021917,2]
[315950111,1709299843015,-333.42,0.00021917,2]
[315950112,1709299843028,-11064.86638309,0.00021917,2]
[315950113,1709299843037,-500.0,0.00021917,2]
[315950114,1709299843046,-246.1972474,0.00021917,2]
[315950115,1709299843057,-253.8027526,0.00021917,2]
[315950116,1709299843067,-500.0,0.00021917,2]
[315950117,1709299843076,-555.23,0.00021917,2]
[315950118,1709299843085,-500.0,0.00021917,2]
[315950119,1709299843094,-185.314753,0.00021917,2]
[315950120,1709299843106,-396.91144512,0.00021917,2]
[315950121,1709299843117,-81.80380188,0.00021917,2]
[315950122,1709299843127,-214.63120987,0.00021917,2]
[315950123,1709299843139,-358.74879013,0.00021917,2]
[315950124,1709299843151,-425.19186747,0.00021917,2]
[315950125,1709299843171,-633.19813253,0.00021917,2]
[315950126,1709299843181,-1154.32,0.00021917,2]
[315950127,1709299843191,-509.3,0.00021917,2]
[315950128,1709299843202,-1018.32,0.00021917,2]
[315950129,1709299843212,-2031.42,0.00021917,2]
[315950130,1709299843222,-1112.07,0.00021917,2]
[315950131,1709299843232,-500.0,0.00021917,2]
[315950132,1709299843241,-339.23145892,0.00021917,2]
[315950133,1709299843254,-160.76854108,0.00021917,2]
[315950134,1709299843264,-500.0,0.00021917,2]
[315950135,1709299843273,-759.95,0.00021917,2]
[315950136,1709299843282,-500.0,0.00021917,2]
[315950137,1709299843291,-500.0,0.00021917,2]
[315950138,1709299843301,-500.0,0.00021917,2]
[315950139,1709299843310,-516.67,0.00021917,2]
[315950140,1709299843320,-585.41,0.00021917,2]
[315950141,1709299843329,-587.62,0.00021917,2]
[315950142,1709299843338,-755.79,0.00021917,2]
[315950143,1709299843348,-500.0,0.00021917,2]
[315950144,1709299843357,-500.0,0.00021917,2]
[315950145,1709299843366,-968.48,0.00021917,2]
[315950146,1709299843376,-1143.53,0.00021917,2]
[315950147,1709299843385,-580.43,0.00021917,2]
[315950148,1709299843396,-378.84147166,0.00021917,2]
[315950149,1709299843408,-917.82852834,0.00021917,2]
[315950150,1709299843417,-500.0,0.00021917,2]
[315950151,1709299843426,-500.0,0.00021917,2]
[315950152,1709299843436,-500.0,0.00021917,2]
[315950153,1709299843445,-604.83,0.00021917,2]
[315950154,1709299843455,-667.03,0.00021917,2]
[315950155,1709299843464,-500.0,0.00021917,2]
[315950156,1709299843473,-701.27,0.00021917,2]
[315950157,1709299843482,-587.96,0.00021917,2]
[315950158,1709299843492,-500.0,0.00021917,2]
[315950159,1709299843501,-500.0,0.00021917,2]
[315950160,1709299843511,-500.0,0.00021917,2]
[315950161,1709299843520,-500.0,0.00021917,2]
[315950162,1709299843529,-337.22410682,0.00021917,2]
[315950163,1709299843541,-188.51589318,0.00021917,2]
[315950164,1709299843551,-353.39210067,0.00021917,2]
[315950165,1709299843566,-146.60789933,0.00021917,2]
[315950166,1709299843575,-131.12714567,0.00021917,2]
[315950167,1709299843586,-594.07058303,0.00021917,2]
[315950168,1709299843598,-263.5322713,0.00021917,2]
[315950169,1709299843609,-500.0,0.00021917,2]
[315950170,1709299843618,-500.0,0.00021917,2]
[315950171,1709299843627,-443.56594005,0.00021917,2]
[315950172,1709299843640,-56.43405995,0.00021917,2]
[315950173,1709299843653,-338.29641553,0.00021917,2]
[315950174,1709299844266,-45531.73878732,0.0002128,2]
[315950175,1709299844276,-407.17041215,0.00021904,2]
[315950176,1709299844285,-161.70358447,0.00021917,2]
[315950177,1709299844295,-500.0,0.00021917,2]
[315950178,1709299844304,-500.0,0.00021917,2]
[315950179,1709299844313,-500.0,0.00021917,2]
[315950180,1709299844323,-500.0,0.00021917,2]
[315950181,1709299844333,-700.2,0.00021917,2]
[315950182,1709299844343,-500.0,0.00021917,2]
[315950183,1709299844352,-2541.51,0.00021917,2]
[315950184,1709299844361,-500.0,0.00021917,2]
[315950185,1709299844371,-500.0,0.00021917,2]
[315950186,1709299844382,-864.87,0.00021917,2]
[315950187,1709299844392,-500.0,0.00021917,2]
[315950188,1709299844404,-500.0,0.00021917,2]
[315950189,1709299844414,-1021.06,0.00021917,2]
[315950190,1709299844425,-931.53,0.00021917,2]
[315950191,1709299844436,-500.0,0.00021917,2]
[315950192,1709299844446,-500.0,0.00021917,2]
[315950193,1709299844456,-1713.24,0.00021917,2]
[315950194,1709299844465,-500.0,0.00021917,2]
[315950195,1709299844475,-500.0,0.00021917,2]
[315950196,1709299844484,-500.0,0.00021917,2]
[315950197,1709299844494,-500.0,0.00021917,2]
[315950198,1709299844504,-632.79,0.00021917,2]
[315950199,1709299844513,-927.61,0.00021917,2]
[315950200,1709299844522,-670.18,0.00021917,2]
[315950201,1709299844532,-1085.93,0.00021917,2]
[315950202,1709299844541,-929.72,0.00021917,2]
[315950203,1709299844550,-1542.37,0.00021917,2]
[315950204,1709299844559,-500.0,0.00021917,2]
[315950205,1709299844570,-536.17,0.00021917,2]
[315950206,1709299844579,-3102.55,0.00021917,2]
[315950207,1709299844589,-662.83,0.00021917,2]
[315950208,1709299844599,-500.0,0.00021917,2]
[315950209,1709299844608,-637.85,0.00021917,2]
[315950210,1709299844618,-500.0,0.00021917,2]
[315950211,1709299844628,-500.0,0.00021917,2]
[315950212,1709299844637,-500.0,0.00021917,2]
[315950213,1709299844648,-708.77,0.00021917,2]
[315950214,1709299844658,-954.57,0.00021917,2]
[315950215,1709299844667,-849.33,0.00021917,2]
[315950216,1709299844677,-500.0,0.00021917,2]
[315950217,1709299844687,-500.0,0.00021917,2]
[315950218,1709299844697,-4658.13,0.00021917,2]
[315950219,1709299844706,-500.0,0.00021917,2]
[315950220,1709299844716,-500.0,0.00021917,2]
[315950221,1709299844726,-6209.45,0.00021917,2]
[315950222,1709299844735,-1305.67,0.00021917,2]
[315950223,1709299844745,-726.2,0.00021917,2]
[315950224,1709299844754,-271.86,0.00021917,2]
[315950225,1709299844763,-500.0,0.00021917,2]
[315950226,1709299844772,-3275.31,0.00021917,2]
[315950227,1709299844782,-1013.95,0.00021917,2]
[315950228,1709299844791,-500.0,0.00021917,2]
[315950229,1709299844800,-860.05,0.00021917,2]
[315950230,1709299844809,-561.85,0.00021917,2]
[315950231,1709299844818,-554.21,0.00021917,2]
[315950232,1709299844828,-599.28,0.00021917,2]
[315950233,1709299844837,-500.0,0.00021917,2]
[315950234,1709299844846,-500.0,0.00021917,2]
[315950235,1709299844855,-475.50867405,0.00021917,2]
[315950236,1709299844865,-1054.32,0.00021917,2]
[315950237,1709299844874,-500.0,0.00021917,2]
[315950238,1709299844883,-500.0,0.00021917,2]
[315950239,1709299844892,-1033.14,0.00021917,2]
[315950240,1709299844903,-500.0,0.00021917,2]
[315950241,1709299844912,-808.02,0.00021917,2]
[315950242,1709299844921,-500.0,0.00021917,2]
[315950243,1709299844930,-500.0,0.00021917,2]
[315950244,1709299844939,-500.0,0.00021917,2]
[315950245,1709299844949,-500.0,0.00021917,2]
[315950246,1709299844958,-500.0,0.00021917,2]
[315950247,1709299844967,-500.0,0.00021917,2]
[315950248,1709299844976,-500.0,0.00021917,2]